bitfinex/quotes_SOLUSD_20251116
["timestamp","ask_amount","ask_price","bid_price","bid_amount"]
[1763264273990,0.67,141.36,141.33,3.21172427]
[1763264275805,0.67,141.36,141.34,2.71172427]
[1763264279616,0.67,141.37,141.34,2.71172427]
[1763264280307,0.67,141.38,141.34,3.21172427]
[1763264280619,0.67,141.37,141.34,3.21172427]
[1763264280910,0.67,141.37,141.34,1.73367659]
[1763264281213,9.78882769,141.36,141.32,1.73367659]
[1763264281414,9.78882769,141.36,141.3,22.6512]
[1763264281415,0.67,141.35,141.31,1.73367659]
[1763264282417,11.52250428,141.34,141.3,22.6512]
[1763264282720,11.52250428,141.34,141.29,1.73367659]
[1763264282919,0.67,141.33,141.3,1.73367659]
[1763264284004,0.67,141.33,141.28,0.5]
[1763264284203,2.40367659,141.33,141.29,1.73367659]
[1763264284400,0.67,141.33,141.29,1.73367659]
[1763264284610,0.67,141.33,141.3,1.73367659]
[1763264288238,0.67,141.36,141.32,1.73367659]
[1763264288413,10.45882769,141.36,141.35,1.73367659]
[1763264288731,10.45882769,141.36,141.34,1.73367659]
[1763264289234,0.67,141.37,141.35,1.73367659]
[1763264289737,0.67,141.37,141.34,1.73367659]
[1763264294661,10.44882769,141.4,141.36,1.73367659]
[1763264294827,10.44882769,141.4,141.37,1.73367659]
[1763264295018,0.66,141.39,141.36,1.73367659]
[1763264295223,0.66,141.39,141.37,1.73367659]
[1763264296142,0.66,141.39,141.36,1.73367659]
[1763264296451,2.39367659,141.39,141.35,1.73367659]
[1763264296655,0.66,141.39,141.35,1.73367659]
[1763264296843,0.66,141.38,141.36,1.73367659]
[1763264305642,0.66,141.38,141.35,1.73367659]
[1763264308559,9.78882769,141.35,141.31,1.73367659]
[1763264308859,1.73367659,141.35,141.3,1.73367659]
[1763264309043,0.66,141.34,141.3,1.73367659]
[1763264309244,0.66,141.34,141.3,2.23367659]
[1763264309662,0.66,141.34,141.3,0.5]
[1763264310259,2.39367659,141.34,141.3,0.5]
[1763264311049,0.66,141.34,141.3,0.5]
[1763264311573,1.73367659,141.35,141.3,2.23367659]
[1763264311574,9.78882769,141.35,141.3,2.23367659]
[1763264311770,10.44882769,141.35,141.3,2.23367659]
[1763264311970,10.44882769,141.35,141.31,0.5]
[1763264312265,0.66,141.34,141.31,0.5]
[1763264312451,0.66,141.37,141.33,1.73367659]
[1763264312871,0.66,141.37,141.33,2.23367659]
[1763264316068,0.66,141.37,141.34,1.73367659]
[1763264318076,10.44882769,141.38,141.35,1.73367659]
[1763264318960,10.44882769,141.38,141.36,1.73367659]
[1763264320282,104.2,141.39,141.36,2.23367659]
[1763264320458,104.86,141.39,141.36,2.23367659]
[1763264320867,104.86,141.39,141.36,1.73367659]
[1763264321559,0.66,141.38,141.36,1.73367659]
[1763264326195,104.2,141.39,141.36,1.73367659]
[1763264326358,104.89,141.39,141.38,1.73367659]
[1763264326672,0.69,141.39,141.37,1.73367659]
[1763264331875,0.69,141.39,141.34,0.5]
[1763264332192,0.69,141.39,141.37,1.73367659]
[1763264336607,0.69,141.39,141.35,1.73367659]
[1763264342914,0.69,141.39,141.35,2.70852232]
[1763264345303,0.69,141.39,141.36,2.70852232]
[1763264347127,0.69,141.39,141.35,2.70852232]
[1763264348726,0.69,141.4,141.38,2.70852232]
[1763264349623,0.69,141.4,141.37,2.70852232]
[1763264351710,0.69,141.41,141.39,2.70852232]
[1763264351919,0.69,141.43,141.4,2.70852232]
[1763264352816,0.69,141.43,141.41,2.70852232]
[1763264354011,0.69,141.43,141.39,2.70852232]
[1763264354306,12.49735001,141.4,141.36,2.70852232]
[1763264354511,12.49735001,141.4,141.35,2.70852232]
[1763264354711,0.69,141.39,141.35,2.70852232]
[1763264355922,3.39852232,141.39,141.35,2.70852232]
[1763264356828,0.69,141.38,141.36,2.70852232]
[1763264357921,9.78882769,141.42,141.37,3.20852232]
[1763264358109,0.69,141.42,141.4,2.70852232]
[1763264358713,0.69,141.42,141.38,2.70852232]
[1763264358927,3.39852232,141.42,141.38,2.70852232]
[1763264359340,0.69,141.41,141.37,2.70852232]
[1763264359534,0.69,141.41,141.38,2.70852232]
[1763264361439,0.69,141.41,141.37,2.70852232]
[1763264361734,3.39852232,141.41,141.37,2.70852232]
[1763264362419,0.69,141.4,141.35,0.5]
[1763264362619,3.39852232,141.4,141.36,2.70852232]
[1763264363059,0.69,141.39,141.36,2.70852232]
[1763264367548,0.69,141.39,141.29,27.49347275]
[1763264367549,2.70852232,141.37,141.31,0.5]
[1763264367723,2.70852232,141.37,141.32,2.70852232]
[1763264367923,0.69,141.36,141.32,2.70852232]
[1763264368125,0.69,141.36,141.32,3.20852232]
[1763264368324,0.69,141.36,141.33,2.70852232]
[1763264369132,0.69,141.36,141.33,22.6512]
[1763264369934,0.69,141.36,141.32,3.20852232]
[1763264371926,0.69,141.36,141.33,2.70852232]
[1763264373218,9.78882769,141.38,141.35,2.70852232]
[1763264373419,104.89,141.41,141.37,2.70852232]
[1763264373649,104.89,141.41,141.3,58.04540967]
[1763264373650,0.69,141.43,141.39,2.70852232]
[1763264373847,3.39852232,141.43,141.39,2.70852232]
[1763264374347,9.78882769,141.44,141.38,2.70852232]
[1763264374348,0.69,141.42,141.38,2.70852232]
[1763264374651,0.69,141.42,141.39,2.70852232]
[1763264376037,0.69,141.42,141.38,2.70852232]
[1763264376237,0.69,141.42,141.39,2.70852232]
[1763264377256,0.69,141.45,141.41,2.70852232]
[1763264377447,0.69,141.44,141.37,23.1512]
[1763264377652,9.78882769,141.43,141.39,2.70852232]
[1763264378157,0.69,141.42,141.39,2.70852232]
[1763264378651,0.69,141.42,141.39,3.20852232]
[1763264378830,0.69,141.42,141.39,2.70852232]
[1763264379233,10.47882769,141.43,141.39,3.20852232]
[1763264379829,0.69,141.42,141.39,2.70852232]
[1763264381447,0.69,141.42,141.39,3.20852232]
[1763264382141,0.69,141.42,141.39,2.70852232]
[1763264384037,0.69,141.42,141.39,3.20852232]
[1763264384636,0.69,141.42,141.39,2.70852232]
[1763264386856,3.39852232,141.42,141.38,2.70852232]
[1763264387246,0.68,141.41,141.38,2.70852232]
[1763264389256,2.70852232,141.4,141.36,2.70852232]
[1763264389450,0.68,141.39,141.36,2.70852232]
[1763264389854,2.70852232,141.41,141.37,2.70852232]
[1763264390052,0.68,141.41,141.38,2.70852232]
[1763264390440,0.68,141.43,141.4,2.70852232]
[1763264391957,0.68,141.43,141.39,2.70852232]
[1763264392135,3.38852232,141.43,141.39,3.20852232]
[1763264392550,0.68,141.42,141.39,2.70852232]
[1763264394834,0.68,141.42,141.38,2.70852232]
[1763264395568,0.68,141.42,141.38,3.20852232]
[1763264396234,0.68,141.42,141.39,2.70852232]
[1763264400165,2.70852232,141.44,141.39,2.70852232]
[1763264400339,0.68,141.45,141.43,2.70852232]
[1763264400549,0.88,141.47,141.44,2.70852232]
[1763264400875,0.88,141.47,141.45,2.70852232]
[1763264401171,0.2,141.47,141.44,3.20852232]
[1763264401553,0.88,141.47,141.45,2.70852232]
[1763264402270,0.68,141.46,141.42,2.70852232]
[1763264402568,3.38852232,141.46,141.42,3.20852232]
[1763264402768,0.68,141.46,141.42,3.20852232]
[1763264402954,0.2,141.47,141.45,2.70852232]
[1763264403154,0.2,141.47,141.46,2.70852232]
[1763264403757,0.2,141.47,141.45,2.70852232]
[1763264404070,0.2,141.47,141.46,2.70852232]
[1763264404778,0.2,141.47,141.45,2.70852232]
[1763264404977,0.2,141.47,141.45,1.73112307]
[1763264405580,0.68,141.46,141.43,1.73112307]
[1763264406162,2.41112307,141.46,141.42,1.73112307]
[1763264406562,0.68,141.45,141.42,1.73112307]
[1763264408874,9.98882769,141.47,141.43,1.73112307]
[1763264409058,0.68,141.46,141.44,1.73112307]
[1763264411671,0.68,141.46,141.43,1.73112307]
[1763264413365,0.2,141.47,141.45,1.73112307]
[1763264413569,0.2,141.47,141.46,1.73112307]
[1763264414091,0.88,141.47,141.46,1.73112307]
[1763264414490,0.2,141.47,141.46,1.73112307]
[1763264415371,0.2,141.47,141.46,2.23112307]
[1763264416087,0.2,141.47,141.46,1.73112307]
[1763264416788,0.2,141.47,141.46,24.88232307]
[1763264420096,0.88,141.47,141.46,24.38232307]
[1763264420302,0.88,141.47,141.46,1.73112307]
[1763264420676,0.88,141.47,141.45,1.73112307]
[1763264420996,0.88,141.47,141.43,0.5]
[1763264421298,0.88,141.47,141.44,1.73112307]
[1763264421299,0.68,141.46,141.44,1.73112307]
[1763264422468,0.68,141.46,141.43,1.73112307]
[1763264423373,0.68,141.46,141.44,1.73112307]
[1763264424882,0.88,141.47,141.45,1.73112307]
[1763264425079,0.88,141.47,141.42,1.73112307]
[1763264425080,0.88,141.47,141.44,1.73112307]
[1763264425286,0.68,141.46,141.44,1.73112307]
[1763264430480,0.2,141.47,141.45,1.73112307]
[1763264430687,0.88,141.47,141.45,1.73112307]
[1763264430901,0.88,141.47,141.44,1.73112307]
[1763264431102,0.68,141.46,141.44,1.73112307]
[1763264432215,0.68,141.46,141.39,0.5]
[1763264432393,2.41112307,141.46,141.41,1.73112307]
[1763264432585,2.41112307,141.46,141.42,1.73112307]
[1763264432783,0.68,141.45,141.42,1.73112307]
[1763264433807,0.68,141.45,141.41,1.73112307]
[1763264434692,0.68,141.45,141.42,1.73112307]
[1763264434893,3.69695305,141.44,141.42,1.73112307]
[1763264435484,4.37695305,141.44,141.42,1.73112307]
[1763264438206,0.68,141.43,141.42,1.73112307]
[1763264439399,4.37695305,141.44,141.42,1.73112307]
[1763264439826,0.68,141.44,141.42,1.73112307]
[1763264441724,106.13112307,141.47,141.43,1.73112307]
[1763264441915,0.68,141.45,141.43,1.73112307]
[1763264442914,0.68,141.45,141.42,1.73112307]
[1763264446027,0.68,141.45,141.43,1.73112307]
[1763264446412,0.68,141.45,141.41,24.38232307]
[1763264447229,0.68,141.45,141.42,1.73112307]
[1763264448319,0.68,141.45,141.41,1.73112307]
[1763264451033,0.68,141.45,141.42,1.73112307]
[1763264452717,105.06,141.47,141.43,2.23112307]
[1763264453018,0.66,141.46,141.44,1.73112307]
[1763264453918,105.06,141.47,141.44,1.73112307]
[1763264454225,104.4,141.47,141.45,1.73112307]
[1763264454528,105.06,141.47,141.45,1.73112307]
[1763264455310,0.86,141.47,141.45,1.73112307]
[1763264456510,0.66,141.46,141.44,22.6512]
[1763264456709,0.66,141.46,141.43,1.73112307]
[1763264456909,0.66,141.46,141.44,1.73112307]
[1763264459118,0.66,141.46,141.42,22.6512]
[1763264459327,0.66,141.46,141.38,5.87861465]
[1763264459328,9.78882769,141.42,141.38,5.87861465]
[1763264459514,9.78882769,141.42,141.37,1.73112307]
[1763264459515,0.66,141.41,141.37,1.73112307]
[1763264459710,0.66,141.41,141.38,1.73112307]
[1763264460949,0.66,141.45,141.4,1.73112307]
[1763264461244,0.66,141.44,141.41,1.73112307]
[1763264462421,0.66,141.44,141.42,1.73112307]
[1763264462623,32.64002769,141.47,141.43,1.73112307]
[1763264462624,0.66,141.45,141.43,1.73112307]
[1763264462819,0.66,141.46,141.43,1.73112307]
[1763264463146,0.66,141.46,141.41,23.1512]
[1763264463519,0.66,141.46,141.43,1.73112307]
[1763264466840,0.66,141.46,141.43,2.70565485]
[1763264467540,0.66,141.46,141.45,2.70565485]
[1763264468119,0.66,141.46,141.43,22.6512]
[1763264468319,0.2,141.47,141.45,2.70565485]
[1763264468526,0.86,141.47,141.45,2.70565485]
[1763264470320,0.86,141.47,141.43,23.1512]
[1763264470321,0.86,141.47,141.46,2.70565485]
[1763264471133,0.2,141.47,141.46,3.20565485]
[1763264471524,0.2,141.47,141.46,25.85685485]
[1763264472246,0.2,141.47,141.46,3.20565485]
[1763264472627,0.86,141.47,141.45,2.8329615]
[1763264472831,0.86,141.47,141.45,2.70565485]
[1763264473044,0.66,141.46,141.45,2.70565485]
[1763264473245,0.66,141.46,141.44,2.70565485]
[1763264473456,0.66,141.46,141.4,5.87861465]
[1763264473457,2.70565485,141.45,141.4,2.70565485]
[1763264473657,2.70565485,141.44,141.4,2.70565485]
[1763264473841,3.40565485,141.44,141.4,25.35685485]
[1763264474043,2.70565485,141.42,141.37,2.70565485]
[1763264474525,0.7,141.41,141.37,25.35685485]
[1763264475441,0.7,141.42,141.38,3.20565485]
[1763264475853,0.7,141.42,141.38,0.5]
[1763264476038,0.7,141.42,141.38,2.70565485]
[1763264477460,0.7,141.42,141.39,2.70565485]
[1763264477756,0.66,141.43,141.41,2.70565485]
[1763264477931,0.66,141.43,141.4,2.70565485]
[1763264478133,0.66,141.43,141.41,2.70565485]
[1763264478853,0.66,141.44,141.42,2.70565485]
[1763264479856,0.66,141.44,141.41,2.70565485]
[1763264483532,0.66,141.44,141.38,22.6512]
[1763264483756,0.66,141.44,141.41,2.70565485]
[1763264484751,0.66,141.44,141.42,2.70565485]
[1763264484935,0.66,141.44,141.41,2.70565485]
[1763264485639,0.66,141.44,141.42,2.70565485]
[1763264489046,0.66,141.44,141.4,23.1512]
[1763264489356,0.86,141.47,141.43,2.70565485]
[1763264489539,0.2,141.47,141.45,2.70565485]
[1763264489740,0.2,141.47,141.46,2.70565485]
[1763264492950,0.2,141.47,141.46,25.35685485]
[1763264493452,0.2,141.47,141.46,25.85685485]
[1763264494045,0.2,141.47,141.46,25.35685485]
[1763264495470,0.2,141.47,141.46,22.6512]
[1763264495648,0.2,141.47,141.46,25.35685485]
[1763264498894,0.2,141.47,141.46,25.85685485]
[1763264499049,0.2,141.47,141.46,2.70565485]
[1763264499250,0.86,141.47,141.45,25.35685485]
[1763264499448,0.2,141.47,141.46,2.70565485]
[1763264500586,0.2,141.47,141.46,3.20565485]
[1763264501375,0.2,141.47,141.46,5.9113097]
[1763264501554,0.2,141.47,141.46,3.20565485]
[1763264507756,0.2,141.47,141.46,2.70565485]
[1763264508259,0.2,141.47,141.46,3.20565485]
[1763264509889,0.2,141.47,141.46,6.03841572]
[1763264511990,0.2,141.47,141.46,3.20565485]
[1763264512188,0.2,141.47,141.46,2.70565485]
[1763264515668,0.2,141.47,141.46,3.20565485]
[1763264515868,0.2,141.47,141.46,2.70565485]
[1763264519317,0.2,141.47,141.46,3.20565485]
[1763264521184,0.9,141.47,141.46,2.70565485]
[1763264524624,0.2,141.47,141.46,2.70565485]
[1763264524917,0.9,141.47,141.46,2.70565485]
[1763264527021,0.9,141.47,141.46,1.73056803]
[1763264544846,0.9,141.47,141.44,1.73056803]
[1763264545047,0.69,141.46,141.44,1.73056803]
[1763264547656,0.69,141.46,141.45,1.73056803]
[1763264552549,0.69,141.46,141.41,0.5]
[1763264552550,0.69,141.46,141.4,5.91037179]
[1763264552750,0.69,141.46,141.45,1.73056803]
[1763264553930,0.69,141.46,141.43,1.73056803]
[1763264554843,11.51939572,141.45,141.38,5.91037179]
[1763264555028,11.51939572,141.45,141.41,1.73056803]
[1763264555236,0.69,141.44,141.41,1.73056803]
[1763264556351,0.69,141.44,141.39,22.6512]
[1763264556949,2.42056803,141.44,141.4,1.73056803]
[1763264557363,0.69,141.43,141.4,1.73056803]
[1763264557538,0.69,141.43,141.39,24.38176803]
[1763264557733,2.42056803,141.43,141.34,6.41037179]
[1763264557949,2.42056803,141.43,141.38,1.73056803]
[1763264558154,0.69,141.42,141.38,1.73056803]
[1763264559448,0.69,141.42,141.39,1.73056803]
[1763264559649,0.69,141.42,141.4,1.73056803]
[1763264560862,0.69,141.42,141.41,1.73056803]
[1763264561060,0.69,141.42,141.4,1.73056803]
[1763264563542,0.69,141.42,141.39,22.6512]
[1763264563746,0.69,141.42,141.4,1.73056803]
[1763264568462,11.51939572,141.45,141.4,1.73056803]
[1763264568667,0.67,141.43,141.41,1.73056803]
[1763264571171,0.67,141.43,141.39,23.1512]
[1763264571357,0.67,141.43,141.41,1.73056803]
[1763264573061,0.67,141.43,141.39,22.6512]
[1763264573372,0.67,141.43,141.41,1.73056803]
[1763264573570,0.67,141.43,141.42,1.73056803]
[1763264573955,0.67,141.44,141.42,1.73056803]
[1763264574275,0.67,141.44,141.43,1.73056803]
[1763264575181,0.67,141.44,141.42,1.73056803]
[1763264576456,0.67,141.44,141.43,1.73056803]
[1763264576958,9.98882769,141.47,141.43,1.73056803]
[1763264577160,0.67,141.46,141.45,1.73056803]
[1763264577568,0.67,141.46,141.43,0.5]
[1763264577785,0.67,141.46,141.45,2.83356356]
[1763264578387,0.67,141.46,141.45,4.56413159]
[1763264579389,0.67,141.46,141.45,1.73056803]
[1763264580590,0.67,141.46,141.44,1.73056803]
[1763264581389,0.67,141.46,141.45,1.73056803]
[1763264583166,0.67,141.46,141.43,2.83396507]
[1763264583455,0.67,141.46,141.44,1.73056803]
[1763264583663,0.67,141.46,141.41,22.6512]
[1763264583964,0.67,141.46,141.44,1.73056803]
[1763264584962,0.67,141.46,141.45,1.73056803]
[1763264586092,0.2,141.47,141.45,2.23056803]
[1763264586257,0.2,141.47,141.46,1.73056803]
[1763264587807,0.2,141.47,141.46,4.56413159]
[1763264588664,0.2,141.47,141.46,1.73056803]
[1763264588963,0.2,141.47,141.46,6.03768971]
[1763264589175,0.2,141.47,141.46,5.53768971]
[1763264590799,0.2,141.47,141.46,6.03768971]
[1763264590978,0.2,141.47,141.46,5.53768971]
[1763264595666,0.2,141.47,141.46,2.83356356]
[1763264595983,0.2,141.47,141.46,5.53768971]
[1763264603874,0.87,141.47,141.46,2.70412615]
[1763264604074,0.87,141.47,141.45,25.35532615]
[1763264604277,0.67,141.46,141.45,5.53768971]
[1763264604604,0.2,141.47,141.45,2.70412615]
[1763264604810,0.2,141.47,141.46,2.70412615]
[1763264605898,0.2,141.47,141.46,5.53748899]
[1763264607701,0.87,141.47,141.46,5.53748899]
[1763264608604,0.2,141.47,141.46,5.53748899]
[1763264611488,0.2,141.47,141.46,6.03748899]
[1763264617298,0.2,141.47,141.46,5.53748899]
[1763264617500,0.2,141.47,141.46,6.03748899]
[1763264618992,0.2,141.47,141.46,5.53748899]
[1763264619409,0.2,141.47,141.46,6.03748899]
[1763264619601,0.2,141.47,141.46,5.53748899]
[1763264620591,0.2,141.47,141.46,6.03748899]
[1763264621509,0.2,141.47,141.46,5.53748899]
[1763264622790,0.87,141.47,141.46,5.53748899]
[1763264623019,0.87,141.47,141.46,2.70412615]
[1763264623225,0.87,141.47,141.46,11.31862409]
[1763264624508,0.87,141.47,141.46,2.70412615]
[1763264630107,0.87,141.47,141.46,12.69295384]
[1763264632507,0.87,141.47,141.46,2.70412615]
[1763264632706,0.87,141.47,141.46,12.69295384]
[1763264634407,0.2,141.47,141.46,12.69295384]
[1763264641309,0.86,141.47,141.46,12.69295384]
[1763264643249,0.86,141.47,141.45,22.6512]
[1763264643539,0.66,141.46,141.45,25.35532615]
[1763264643929,0.2,141.47,141.45,25.35532615]
[1763264644124,0.86,141.47,141.46,2.70412615]
[1763264645423,0.86,141.47,141.45,22.6512]
[1763264645625,0.2,141.47,141.44,25.48476356]
[1763264645927,0.2,141.47,141.46,2.70412615]
[1763264646129,0.86,141.47,141.46,2.70412615]
[1763264650862,0.86,141.47,141.46,1.73057012]
[1763264660811,0.86,141.47,141.45,2.83336284]
[1763264661085,0.68,141.46,141.43,22.6512]
[1763264661464,9.78882769,141.45,141.42,4.56453519]
[1763264661685,9.78882769,141.45,141.41,1.73057012]
[1763264661876,0.68,141.44,141.41,1.73057012]
[1763264662869,0.68,141.44,141.42,1.73057012]
[1763264663071,0.68,141.44,141.4,7.87870189]
[1763264663270,0.68,141.44,141.42,1.73057012]
[1763264665976,0.68,141.46,141.43,1.73057012]
[1763264666179,10.46882769,141.46,141.45,1.73057012]
[1763264666694,10.46882769,141.46,141.44,1.73057012]
[1763264666866,0.68,141.45,141.44,1.73057012]
[1763264669593,9.98882769,141.47,141.44,1.73057012]
[1763264669825,0.68,141.46,141.45,1.73057012]
[1763264676089,0.68,141.46,141.44,1.73057012]
[1763264679409,0.68,141.46,141.45,1.73057012]
[1763264682309,0.2,141.47,141.45,1.73057012]
[1763264682512,0.88,141.47,141.46,1.73057012]
[1763264683587,0.2,141.47,141.46,1.73057012]
[1763264683794,0.92,141.47,141.46,1.73057012]
[1763264692618,0.92,141.47,141.41,5.91037179]
[1763264692619,9.78882769,141.46,141.39,5.91037179]
[1763264692844,1.73057012,141.43,141.39,1.73057012]
[1763264693410,0.72,141.42,141.39,1.73057012]
[1763264698437,0.72,141.42,141.38,1.73057012]
[1763264700234,0.72,141.42,141.33,0.5]
[1763264700235,9.78882769,141.39,141.33,0.5]
[1763264700439,0.72,141.41,141.38,1.73057012]
[1763264700657,0.72,141.41,141.39,1.73057012]
[1763264702133,0.72,141.41,141.38,1.73057012]
[1763264702510,4.56553946,141.45,141.4,1.73057012]
[1763264702716,9.78882769,141.45,141.42,1.73057012]
[1763264702918,0.72,141.44,141.42,1.73057012]
[1763264704543,0.72,141.44,141.43,1.73057012]
[1763264705458,24.58177012,141.47,141.43,24.88177012]
[1763264705459,0.2,141.47,141.43,24.88177012]
[1763264705670,0.2,141.47,141.46,1.73057012]
[1763264706268,0.2,141.47,141.46,5.06353162]
[1763264711053,0.2,141.47,141.46,6.03621845]
[1763264711564,0.2,141.47,141.46,5.53621845]
[1763264716190,0.86,141.47,141.46,2.8329615]
[1763264716487,0.86,141.47,141.43,2.70325695]
[1763264716786,12.49208464,141.45,141.41,2.70325695]
[1763264716944,2.70325695,141.44,141.39,2.70325695]
[1763264717147,3.36325695,141.44,141.4,2.70325695]
[1763264717377,0.66,141.43,141.4,2.70325695]
[1763264717779,0.66,141.43,141.39,22.6512]
[1763264717956,0.66,141.43,141.4,2.70325695]
[1763264718363,0.66,141.43,141.41,2.70325695]
[1763264719574,0.66,141.43,141.4,2.70325695]
[1763264719776,0.66,141.43,141.39,2.70325695]
[1763264719980,9.78882769,141.42,141.39,2.70325695]
[1763264720364,0.66,141.41,141.39,2.70325695]
[1763264722771,0.66,141.41,141.38,2.70325695]
[1763264722973,3.36325695,141.41,141.37,2.70325695]
[1763264723365,0.66,141.4,141.37,2.70325695]
[1763264723560,0.66,141.4,141.36,2.70325695]
[1763264726168,0.66,141.4,141.38,2.70325695]
[1763264726352,0.66,141.4,141.37,2.70325695]
[1763264727795,9.78882769,141.39,141.35,2.70325695]
[1763264728281,0.66,141.38,141.36,2.70325695]
[1763264733664,0.66,141.38,141.37,2.70325695]
[1763264735388,0.66,141.38,141.34,32.94002769]
[1763264735583,0.66,141.38,141.37,2.70325695]
[1763264739396,10.44882769,141.4,141.37,2.70325695]
[1763264739585,10.44882769,141.4,141.38,2.70325695]
[1763264739975,0.66,141.4,141.38,2.70325695]
[1763264740381,0.66,141.39,141.38,2.70325695]
[1763264741796,0.66,141.39,141.37,2.70325695]
[1763264743486,0.66,141.39,141.38,2.70325695]
[1763264744699,0.68,141.4,141.38,2.70325695]
[1763264758012,0.68,141.4,141.37,2.70325695]
[1763264759415,0.68,141.4,141.38,2.70325695]
[1763264762604,0.68,141.4,141.36,0.5]
[1763264762805,0.68,141.4,141.38,2.70325695]
[1763264764312,0.68,141.4,141.36,0.5]
[1763264764509,0.68,141.4,141.38,2.70325695]
[1763264767321,0.68,141.4,141.37,2.70325695]
[1763264767505,9.78882769,141.39,141.35,25.35445695]
[1763264768006,0.68,141.38,141.35,25.35445695]
[1763264769105,0.68,141.38,141.35,2.70325695]
[1763264770900,0.68,141.38,141.35,1.73354412]
[1763264772029,11.52237181,141.37,141.31,21.2667919]
[1763264772230,11.52237181,141.37,141.32,1.73354412]
[1763264772525,0.68,141.36,141.32,1.73354412]
[1763264776525,0.68,141.36,141.33,1.73354412]
[1763264778111,0.68,141.36,141.32,1.73354412]
[1763264779211,0.68,141.36,141.33,1.73354412]
[1763264782731,104.2,141.39,141.35,1.73354412]
[1763264782937,0.71,141.38,141.36,1.73354412]
[1763264783134,104.2,141.39,141.37,1.73354412]
[1763264783319,113.98882769,141.39,141.38,1.73354412]
[1763264783626,9.78882769,141.39,141.38,1.73354412]
[1763264784025,0.71,141.41,141.38,1.73354412]
[1763264784221,0.71,141.41,141.39,1.73354412]
[1763264784834,0.71,141.41,141.38,1.73354412]
[1763264785036,0.71,141.41,141.39,1.73354412]
[1763264790353,0.71,141.41,141.38,1.73354412]
[1763264799548,9.78882769,141.4,141.33,23.1512]
[1763264799749,11.52237181,141.4,141.33,23.1512]
[1763264799935,9.78882769,141.38,141.36,1.73354412]
[1763264800449,0.71,141.37,141.34,0.5]
[1763264800649,0.71,141.37,141.36,1.73354412]
[1763264803329,1.73354412,141.4,141.36,1.73354412]
[1763264803548,0.68,141.38,141.36,1.73354412]
[1763264810567,0.68,141.38,141.34,0.5]
[1763264810863,0.68,141.38,141.36,1.73354412]
[1763264811759,11.52237181,141.41,141.37,2.23354412]
[1763264811760,10.46882769,141.41,141.37,2.23354412]
[1763264812065,0.68,141.4,141.38,1.73354412]
[1763264813242,0.68,141.4,141.39,1.73354412]
[1763264813771,0.68,141.4,141.38,1.73354412]
[1763264813970,4.37820277,141.45,141.39,1.73354412]
[1763264814174,0.68,141.43,141.42,1.73354412]
[1763264814482,0.68,141.43,141.41,1.73354412]
[1763264815638,9.78882769,141.44,141.41,1.73354412]
[1763264815933,11.52237181,141.44,141.39,1.73354412]
[1763264816164,11.52237181,141.44,141.4,1.73354412]
[1763264816351,9.78882769,141.44,141.37,32.44002769]
[1763264816536,9.78882769,141.42,141.39,1.73354412]
[1763264817876,0.68,141.41,141.38,1.73354412]
[1763264823983,9.78882769,141.38,141.33,0.71]
[1763264824140,9.78882769,141.36,141.33,1.73354412]
[1763264824339,9.78882769,141.36,141.31,10.49882769]
[1763264824544,0.68,141.35,141.31,0.71]
[1763264824768,0.68,141.35,141.33,1.73354412]
[1763264826576,0.68,141.35,141.32,1.73354412]
[1763264826772,0.68,141.35,141.32,2.44354412]
[1763264827269,0.68,141.35,141.33,1.73354412]
[1763264827478,10.46882769,141.36,141.33,1.73354412]
[1763264827657,9.78882769,141.36,141.33,1.73354412]
[1763264827854,0.68,141.35,141.33,1.73354412]
[1763264828085,10.46882769,141.36,141.33,1.73354412]
[1763264828300,0.68,141.35,141.32,1.73354412]
[1763264829271,0.68,141.35,141.32,2.44354412]